Cogmind - Beta 9.1 @@@ ROGUE MODE // 2019.11.10 @ 18:32:31 Player: Fleshy Vegetable Bird Result: Destroyed by Y-45 Defender with Heavy Assault Rifle Performance ------------- Evolutions (1) 500 Regions Visited (2) 400 Robots Destroyed (52) 260 Value Destroyed (1037) 1037 Prototype IDs (1) 20 Alien Tech Used (0) 0 Bonus (20) 20 TOTAL SCORE: 2237 Bonus ------- High Alert Combat Kills 20 Cogmind --------- Core Integrity 0/400 Matter 203/300 Energy 140/140 System Corruption 0% Temperature Cool (9) Location -9/Materials Parts ------- Power (1) Light Deuterium Engine Propulsion (3) Compact Wheel Utility (3) Medium Storage Unit Large Storage Unit Weapon (2) High-powered Shotgun High-powered Shotgun Inventory (14) Light Deuterium Engine Advanced Sensor Array Advanced Sensor Array Improved Signal Interpreter Improved Terrain Scanner Terrain Scan Processor Propulsion Shielding Hacking Suite Hacking Suite Advanced Beam Cannon High-powered Shotgun Maul Peak State ------------ Power Light Deuterium Engine Propulsion Wheel Wheel Compact Wheel Utility Medium Storage Unit Large Storage Unit Hardened Light Armor Plating Weapon EM Shotgun EM Shotgun Inventory Light Ion Engine Light Deuterium Engine Advanced Sensor Array Advanced Sensor Array Improved Signal Interpreter Improved Terrain Scanner Terrain Scan Processor Propulsion Shielding Hacking Suite Hacking Suite Light EM Pulse Cannon Advanced Beam Cannon Assault Rifle Maul [Rating: 17] Favorites ----------- Power Light Ion Engine Engine Light Ion Engine Propulsion Wheel Wheel Wheel Utility Small Storage Unit Storage Small Storage Unit Protection Hardened Light Armor Plating Weapon EM Shotgun Energy Gun EM Shotgun Energy Cannon Light EM Pulse Cannon Ballistic Gun High-powered Shotgun Special Weapon Mining Laser Impact Weapon Maul Build | -11 -10 -9 ------- Run | Scr Mat Mat Slots Evolved 2 | . . 2 Power . | . . . Propulsion 1 | . . 1 Utility 1 | . . 1 Weapon . | . . . Parts Attached 34 | 7 3 24 Power 5 | 1 . 4 Engine 5 | 1 . 4 Core . | . . . Reactor . | . . . Propulsion 7 | 2 . 5 Treads . | . . . Leg . | . . . Wheel 7 | 2 . 5 Hover . | . . . Flight . | . . . Utility 6 | 2 1 3 Device . | . . . Storage 4 | 2 1 1 Processor . | . . . Hackware . | . . . Protection 2 | . . 2 Artifact . | . . . Weapon 16 | 2 2 12 Energy Gun 9 | 2 1 6 Energy Cannon 2 | . . 2 Ballistic Gun 3 | . . 3 Ballistic Cannon . | . . . Launcher . | . . . Special Weapon 1 | . 1 . Impact Weapon 1 | . . 1 Slashing Weapon . | . . . Piercing Weapon . | . . . Special Melee Weapon . | . . . Unidentified Prototypes 1 | . . 1 Parts Lost 13 | . . 13 Power 1 | . . 1 Propulsion 5 | . . 5 Utility 1 | . . 1 Weapon 6 | . . 6 Highest Loss Streak 4 | . . 4 Average Slot Usage (%) 90 | . 100 88 Engine 10 | . 14 9 Wheel 27 | . 28 26 Storage 23 | . 28 22 Protection 6 | . . 8 Energy Gun 19 | . 26 17 Ballistic Gun 1 | . . 1 Impact Weapon 1 | . . 1 Naked Turns . | . . . Heaviest Build 40 | 13 25 40 Greatest Support 36 | 20 20 36 Greatest Overweight (x) 9 | 1 1 9 Average Overweight (x) . | . . . Largest Inventory Capacity 14 | 8 12 14 Average Capacity 11 | 6 8 12 Most Carried 14 | 6 11 14 Average Carried 10 | 3 5 12 Final Capacity 14 | 8 12 14 Final Carried 12 | 5 11 12 Class Distribution -------------------- 100% | Mutant Dominant Class ---------------- Mutant | -10/Materials Mutant | -9/Materials Resources | -11 -10 -9 ----------- Run | Scr Mat Mat Matter Collected 550 | 216 74 260 Remotely . | . . . Salvage Created 1645 | 142 170 1333 Parts 108 | 12 12 84 Haulers Intercepted 1 | . . 1 Recyclers Shooed 2 | . 1 1 Parts Field Recycled . | . . . Retrieved Matter . | . . . Parts Self-Destructed . | . . . Prevented . | . . . Kills | -11 -10 -9 ------- Run | Scr Mat Mat Combat Hostiles Destroyed 32 | . 2 30 Guns 28 | . 2 26 Cannons 3 | . . 3 AOE 1 | . . 1 Classes Destroyed 9 | 2 4 3 Worker 1 | . 1 . Tunneler 5 | 4 . 1 Hauler 1 | . . 1 Recycler 4 | 1 . 3 Operator 5 | . 2 3 Watcher 4 | . 1 3 Swarmer 13 | . . 13 Grunt 14 | . 2 12 Sentry 5 | . . 5 Best Kill Streak 6 | 5 2 6 Combat Bots Only 4 | . 2 4 Max Kills in Single Turn 2 | 1 1 2 Gunslinging . | . . . Exploded 1 | . . 1 Melee . | . . . Uniques/NPCs Destroyed . | . . . Combat | -11 -10 -9 -------- Run | Scr Mat Mat Damage Taken 1693 | . 47 1646 Core 410 | . . 410 Absorbed by Shields . | . . . Core Remaining (%) 100 | 100 100 . Volleys Fired 126 | 11 26 89 Largest 2 | 2 2 2 Hottest 100 | 80 100 90 Shots Fired 217 | 22 45 150 Gun 203 | 22 38 143 Cannon 7 | . . 7 Launcher . | . . . Special 7 | . 7 . Kinetic 38 | . . 38 Thermal 101 | 22 45 34 Explosive . | . . . Electromagnetic 78 | . . 78 Robot Hit Streak 18 | 5 7 18 Robot Miss Streak 8 | 2 3 8 Penetration Max . | . . . Secondary Targets 4 | . . 4 Max Gunslinging Chain 1 | . . 1 Shots Hit Robots 147 | 14 23 110 Core Hits 85 | 6 11 68 Critical Hits . | . . . Critical Kills . | . . . Critical Parts Destroyed . | . . . Melee Attacks 4 | . . 4 Impact 4 | . . 4 Slashing . | . . . Piercing . | . . . Sneak Attacks . | . . . Combat Hostiles . | . . . Follow-up Attacks . | . . . Damage Inflicted 1956 | 152 232 1572 Guns 1743 | 152 232 1359 Cannons 125 | . . 125 Explosions 88 | . . 88 Melee . | . . . Ramming . | . . . Kinetic 402 | . . 402 Thermal 758 | 152 232 374 Explosive . | . . . Electromagnetic 796 | . . 796 Impact . | . . . Slashing . | . . . Piercing . | . . . Highest Corruption . | . . . Average Corruption . | . . . Corruption Purged . | . . . Overload Shots . | . . . Overflow Damage . | . . . Projectiles . | . . . Explosions . | . . . Melee . | . . . Knockbacks . | . . . Impact . | . . . Kinetic . | . . . Secondary . | . . . Self-Inflicted Damage 13 | . . 13 Shots 1 | . . 1 Rammed . | . . . Targets Rammed . | . . . Kicked . | . . . Crushed . | . . . Highest Temperature 318 | 108 82 318 Average Temperature 60 | 51 33 72 Received Heat Transfer 498 | . 27 471 Siege Activations . | . . . Robots Corrupted . | . . . Combat Hostiles . | . . . Parts Fried . | . . . Impact Corruptions . | . . . Robots Melted . | . . . Combat Hostiles . | . . . Parts Melted 4 | . 2 2 Heat Transferred 1625 | 350 525 750 Parts Sabotaged . | . . . Parts Stolen . | . . . Parts Stripped . | . . . Power Chain Reactions 2 | . . 2 Missiles Intercepted . | . . . Alert | -11 -10 -9 ------- Run | Scr Mat Mat Peak Influence 472 | 25 109 472 Average Influence 171 | 11 67 211 Maximum Alert Level 2 | . . 2 Low Security (%) 58 | . . . Level 1 36 | . . . Level 2 4 | . . . Level 3 . | . . . Level 4 . | . . . Level 5 . | . . . High Security . | . . . Max Security . | . . . Squads Dispatched 9 | . 3 6 Investigation 4 | . 1 3 Extermination . | . . . Reinforcement 5 | . 2 3 Assault . | . . . Garrison . | . . . Intercept . | . . . Construction Impeded . | . . . Haulers Reinforced . | . . . Stealth | -11 -10 -9 --------- Run | Scr Mat Mat Distress Signals 4 | . 1 3 Communications Jammed . | . . . Distress Signals . | . . . Times Spotted 68 | . 15 53 Peak Tracking Total 9 | . 3 9 Tactical Retreats 7 | . 1 6 Traps | -11 -10 -9 ------- Run | Scr Mat Mat Traps Triggered 4 | . 1 3 Indirectly . | . . . Trap Hack Attempts . | . . . Triggered . | . . . Disarmed . | . . . Reprogrammed . | . . . Reused . | . . . Traps Extracted . | . . . Installed . | . . . Triggered . | . . . Machines | -11 -10 -9 ---------- Run | Scr Mat Mat Machines Disabled . | . . . Max in Single Turn . | . . . Machines Sabotaged . | . . . Garrisons Compromised . | . . . Overloaded Fab Kills . | . . . Fab Network Shutdowns . | . . . Hacking | -11 -10 -9 --------- Run | Scr Mat Mat Machines Accessed 12 | . 4 8 Terminals 12 | . 4 8 Fabricators . | . . . Repair Stations . | . . . Recycling Units . | . . . Scanalyzers . | . . . Garrison Access . | . . . Total Hacks 29 | . 8 21 Successful 8 | . 2 6 Failed 21 | . 6 15 Catastrophic 4 | . . 4 Database Lockouts . | . . . Manual 30 | . 9 21 Terminals 29 | . 8 21 Fabricators . | . . . Repair Stations . | . . . Recycling Units . | . . . Scanalyzers . | . . . Garrison Access . | . . . Terminal Hacks 2 | . 1 1 Terminal Index 1 | . . 1 Recall Reinforcements 1 | . 1 . Fabricator Hacks . | . . . Repair Station Hacks . | . . . Recycling Unit Hacks . | . . . Scanalyzer . | . . . Garrison Access Hacks . | . . . Unauthorized Hacks 23 | . 4 19 Terminals 6 | . 1 5 Track 2 | . . 2 Assimilate 1 | . 1 . Botnet 3 | . . 3 Fabricators . | . . . Repair Stations . | . . . Recycling Units . | . . . Scanalyzers . | . . . Garrison Access . | . . . Data Cores Recovered . | . . . Used . | . . . Hacking Detections 12 | . 4 8 Full Trace Events . | . . . Feedback Events . | . . . Feedback Blocked . | . . . Robot Schematics Acquired . | . . . Robots Built . | . . . Matter . | . . . Time . | . . . Total Robot Build Rating . | . . . Part Schematics Acquired . | . . . Parts Built . | . . . Matter . | . . . Time . | . . . Total Part Build Rating . | . . . Parts Repaired . | . . . Time . | . . . Parts Recycled . | . . . Recycled Matter . | . . . Retrieved Matter . | . . . Retrieved Components . | . . . Parts Scanalyzed . | . . . Part Schematics Acquired . | . . . Parts Damaged . | . . . Bothacking | -11 -10 -9 ------------ Run | Scr Mat Mat Used RIF Installer . | . . . Robots Hacked . | . . . Non-combat . | . . . Combat . | . . . Robot Hacks Applied . | . . . Relay Couplers Released . | . . . Robots Rewired . | . . . Allies Hacked . | . . . Hacks Repelled . | . . . Allies | -11 -10 -9 -------- Run | Scr Mat Mat Total Allies 1 | . 1 . Largest Group 1 | . 1 . Highest-Rated Group 10 | . 10 . Highest-Rated Ally 10 | . 10 . Total Orders 1 | . 1 . GOTO 1 | . 1 . Ally Attacks . | . . . Total Damage . | . . . Kills . | . . . Allies Corrupted . | . . . Allies Melted . | . . . Intel | -11 -10 -9 ------- Run | Scr Mat Mat Robot Analysis Total . | . . . Derelict Logs Recovered . | . . . Drone Launches . | . . . Drone Recoveries . | . . . Exploration | -11 -10 -9 ------------- Run | Scr Mat Mat Turns Passed 1727 | 110 331 1286 Spaces Moved 1249 | 57 262 930 Core 24 | 19 . 5 Treads . | . . . Legs . | . . . Wheels 1225 | 38 262 925 Hover . | . . . Flight . | . . . Fastest Speed 50 | 50 80 80 Average Speed 89 | 85 80 92 Slowest Speed 500 | 100 90 500 Overloaded Moves . | . . . Propulsion Burnouts . | . . . Robots Hopped . | . . . Cave-ins Triggered . | . . . Exploration Rate (%) 41 | 4 47 73 Regions Visited 2 Branch Regions . Pre-discovered Areas . | . . . Known Exits Taken . | . . . Unknown Exits Taken 2 | 1 1 . Scrap Searched . | . . . Spaces Dug 8 | . 7 1 Terrain Destroyed 18 | . 7 11 Melee 1 | . . 1 Projectile 7 | . 7 . AOE 10 | . . 10 Actions | -11 -10 -9 --------- Run | Scr Mat Mat Total 1617 | 96 321 1200 Wait 141 | 8 23 110 Move 1247 | 56 261 930 Hop . | . . . Pick Up 48 | 13 7 28 Fast Attach . | . . . Attach 19 | 7 . 12 Detach . | . . . Swap 15 | . 3 12 Drop 17 | 1 1 15 Fire 126 | 11 26 89 Melee 4 | . . 4 Ram . | . . . Kick . | . . . Crush . | . . . Escape Stasis . | . . . Rewire . | . . . Trap . | . . . Miscellaneous . | . . . Route ------- -11/Scrapyard -10/Materials (discovered 2 exits: *Mat / [*Min]) -9/Materials (discovered 3 exits: [*Mat] / [*Min] / [*Sto]) History --------- Turn | Location | Event 17 | -11/Scrapyard | Discovered new exit (range 16) 111 | -11/Scrapyard | Entered Materials 232 | -10/Materials | Discovered new exit (range 11) 291 | -10/Materials | Discovered new exit (range 16) 301 | -10/Materials | Build established: Mutant 442 | -10/Materials | Entered another Materials area 442 | -9/Materials | Evolved 2 slots: Propulsion x1, Utility x1 674 | -9/Materials | Discovered new exit (range 15) 815 | -9/Materials | Discovered new exit (range 16) 1281 | -9/Materials | Discovered new exit (range 9) 1478 | -9/Materials | Lost 4 parts (1p1u2w) 1494 | -9/Materials | Core integrity fell below 50% 1548 | -9/Materials | Lost 3 parts (3n) 1595 | -9/Materials | Core integrity fell below 20% 1728 | -9/Materials | Destroyed by Y-45 Defender with Heavy Assault Rifle Last Messages --------------- 01592_ U-05 Engineer builds a Wall. 01593_ Acquired 32 matter. 01596_ U-05 Engineer lays Concrete. 01596_ Acquired Com. Wheel. 01597_ U-05 Engineer lays Concrete. 01597_ U-05 Engineer builds a Wall. 01598_ U-05 Engineer lays Concrete. 01599_ G-34 Mercenary destroyed. 01600_ Acquired 2 matter. 01600_ U-05 Engineer lays Concrete. 01601_ G-34 Mercenary destroyed. 01602_ U-05 Engineer lays Concrete. 01607_ U-05 Engineer builds a Wall. 01608_ Lgt. EM Pulse Cannon destroyed. 01666_ Acquired Hpw. Shotgun. 01687_ Door malfunctions. 01696_ S-10 Pest destroyed. 01696_ Switching to secondary target: S-10 Pest. 01699_ S-10 Pest destroyed. 01725_ Com. Wheel destroyed. Map ----- +----------------------------------------------------+ | ??# #!""" # "" """ # | | ??# * /!""" # "T """ + | | ??# #%""" # "" """ ! # | | ??# #==" # # | | ??# # ############## | | ??# ##############????## | | ??# # #????# | | ??# # #????# | | ??# + #????# % | | ??# # #?######/# | | ??# # #?# %# | | ?## ##############?# %# | | ?# #? ??????# """ /# | | ?# # """ ??????# """ # | | ?# # """ % ?????# """ # | | ?# < + """ ! ?????# # | | ?# # """ ?????#####/## | | ?# # """ ??????????# | | ?# #? ??????????# | | ?### ###? ???????????# | | ???# #????####????########%= | | ???# #????????????# ===#[!* | | ???# #########????# """%#!=% | | ??## ## #????# T"!/%!% | | ??# # #????# """%#=%! | | ??# #@ """ #????# [!#!### # | | ??# T [Y% """ #????#! #=### # | | ??# [=Y#% """ #????######## #?# # | | ??# =%#! #??????????##+###/# | | ??### ##########??????????# | | ????# #???????????????????# """ | | ????# #######??????######## """ | | ????# #??????#] # """ | | ????# !!#??????# # | | ????# //#??????# # """ | | ????# //#??????# # """ | | ????# #???????? # """ | | ????# [ #?????????? # | | ????# #################+######+# | | ????# #??# | | ????# #??# | | ????# #??# | | ????# #??# #################+# | | ????# #??# #?????????????? | | ????# #??# #???????????? """"" | | ????# #### #???????????# """"" | | ????# #???????????# """"" | | ????# #???????????# """"" | | ????# #???????????# """"" | | ????# ###+######???????????????? | +----------------------------------------------------+ Best States ------------- Heat Dissipation 28 Energy Generation 14 Energy Capacity 140 Matter Stores 300 Matter Capacity 300 Sight Range 16 Terrain Scan Density 10 Armor Coverage 150 Evasion (%) 44 Item Schematics ----------------- None Robot Schematics ------------------ None Fabricated ------------ Nothing Alien Tech Used ----------------- None Achievements -------------- None Challenges ------------ None Game ------ Seed IntegrationLatentDriver Manual? 0 Play Time 00:17:32 Cumulative 164.9 hours Start 2019.11.10 @ 18:12:56 End 2019.11.10 @ 18:32:31 Sessions 3 Manual Loads 0 Difficulty Rogue Special Mode None Game No. 237 Rogue 237 Adventurer 0 Explorer 0 Win Type - Total 1 Types 1/0/0/0/0/0/0 Lore% 48 Gallery% 67 Achievement% 42 Wizard Run 0 Options --------- ASCII 0 Keyboard 0 Movement Numpad Keybinds 0 Fullscreen 1 Font 16/Terminus Map View 75x55 Tactical HUD 1 Map Filters NONE Filters NONE Steam 1 RUN: 5358a41a-bc19-41f7-a70e-2f3816e08e58